Workbook

Sheet Topics
A1: 1 | B1: Introduction To Excel
A2: 2 | B2: Formulas
B3: Formula Inputs
B4: Cell References
B5: Math Operators
B6: Functions
B7: Comparative Operators
A8: 3 | B8: Formatting: Stylistic or Number
A9: 4 | B9: Number Formatting
A10: 5 | B10: Math Order of Operations
A11: 6 | B11: Functions
A12: 7 | B12: Cell References
A13: 8 | B13: Putting It All Together: Formulas, Formatting, Cell References
A14: 9 | B14: Homework in this Excel Workbook

Sheet Excel
A1: What is Excel? | B1: Calculations | F1: Calculations | H1: Data Analysis
B2: Data Analysis
F3: Minutes | H3: Minutes
A4: Columns? | B4: =IF(C4=".","Up and down -- letters","") ->  | F4: 12 | H4: 68
A5: Rows? | B5: =IF(C5=".","Left to right -- numbers","") ->  | F5: 22 | H5: 40
A6: Cells | B6: =IF(C6=".","Intersection of row and column","") ->  | F6: 35 | H6: 35
A7: Worksheet? | B7: =IF(C7=".","All the cells in one sheet: also called 'sheet'","") ->  | F7: 68 | H7: 22
A8: Sheet Tab? | B8: =IF(C8=".","Name of sheet","") ->  | F8: 5 | H8: 10
A9: Workbook? | B9: =IF(C9=".","All the sheets","") ->  | F9: 40 | H9: 5
A10: Scroll Arrows? | B10: =IF(C10=".","Moves sheets, but not 'Active Sheet'","") ->  | E10: Total
A11: Move Active Sheet Keyboard: | B11: =IF(C11=".","Ctrl + PageDown or PageUp","") -> 
A12: Save? | B12: =IF(C12=".","Ctrl + S -- saves the changes you made to workbook","") -> 
A13: Save As? | B13: =IF(C13=".","F12 - allows you to change the name or save workbook to a different location","") -> 
A14: Folders? | B14: =IF(C14=".","We will use a folder named ""Busn Math""","") -> 
A15: Typing in cell?
A16: Word to left
A17: Numbers to right
A18: Calculate with a formula in a cell, must have an equal sign as the first character. To make a math calculation, click on the cell with the number to insert a Cell Reference and type math operators.
A20: ="Our First Formula = "&B17&" * "&C17&CHAR(10)&"="&ADDRESS(ROW(B17),COLUMN(B17),4)&"*"&ADDRESS(ROW(C17),COLUMN(C17),4) -> Our First Formula = * =B17*C17
A22: Keyboards:
A24: F2 puts cell in Edit Mode
A25: Ctrl + PageDown | B25: Move Active Sheet
A26: Ctrl + PageUp | B26: Move Active Sheet
A27: Ctrl + Arrow | B27: Jumps to end of Current Region
A28: Ctrl + Home | B28: Goes To A1
A29: Enter Data, Numbers, Text, Formulas into cell ==> Enter, Tab, Ctrl + Enter.
A30: Enter goes down
A31: Tab moves right
A32: Ctrl + Enter keeps cell selected
A33: Window + E | B33: Opens Windows Explorer

Sheet Excel (an)
A1: What is Excel? | B1: Calculations | F1: Calculations | H1: Data Analysis
B2: Data Analysis
F3: Minutes | H3: Minutes
A4: Columns? | B4: =IF(C4=".","Up and down -- letters","") -> Up and down -- letters | C4: . | F4: 12 | H4: 5
A5: Rows? | B5: =IF(C5=".","Left to right -- numbers","") -> Left to right -- numbers | C5: . | F5: 22 | H5: 10
A6: Cells | B6: =IF(C6=".","Intersection of row and column","") -> Intersection of row and column | C6: . | F6: 80 | H6: 22
A7: Worksheet? | B7: =IF(C7=".","All the cells in one sheet: also called 'sheet'","") -> All the cells in one sheet: also called 'sheet' | C7: . | F7: 68 | H7: 35
A8: Sheet Tab? | B8: =IF(C8=".","Name of sheet","") -> Name of sheet | C8: . | F8: 5 | H8: 40
A9: Workbook? | B9: =IF(C9=".","All the sheets","") -> All the sheets | C9: . | F9: 40 | H9: 68
A10: Scroll Arrows? | B10: =IF(C10=".","Moves sheets, but not 'Active Sheet'","") -> Moves sheets, but not 'Active Sheet' | C10: . | E10: Total | F10: =SUM(F4:F9) -> 227
A11: Move Active Sheet Keyboard: | B11: =IF(C11=".","Ctrl + PageDown or PageUp","") -> Ctrl + PageDown or PageUp | C11: .
A12: Save? | B12: =IF(C12=".","Ctrl + S -- saves the changes you made to workbook","") -> Ctrl + S -- saves the changes you made to workbook | C12: .
A13: Save As? | B13: =IF(C13=".","F12 - allows you to change the name or save workbook to a different location","") -> F12 - allows you to change the name or save workbook to a different location | C13: .
A14: Folders? | B14: =IF(C14=".","We will use a folder named ""Busn Math""","") -> We will use a folder named "Busn Math" | C14: .
A15: Typing in cell?
A16: Word to left | B16: Excel | C16: Fun
A17: Numbers to right | B17: 43 | C17: 5
A18: Calculate with a formula in a cell, must have an equal sign as the first character. To make a math calculation, click on the cell with the number to insert a Cell Reference and type math operators.
A20: ="Our First Formula = "&B17&" * "&C17&CHAR(10)&"="&ADDRESS(ROW(B17),COLUMN(B17),4)&"*"&ADDRESS(ROW(C17),COLUMN(C17),4) -> Our First Formula = 43 * 5 =B17*C17 | B20: =B17*C17 -> 215
A22: Keyboards:
A24: F2 puts cell in Edit Mode
A25: Ctrl + PageDown | B25: Move Active Sheet
A26: Ctrl + PageUp | B26: Move Active Sheet
A27: Ctrl + Arrow | B27: Jumps to end of Current Region
A28: Ctrl + Home | B28: Goes To A1
A29: Enter Data, Numbers, Text, Formulas into cell ==> Enter, Tab, Ctrl + Enter.
A30: Enter goes down
A31: Tab moves right
A32: Ctrl + Enter keeps cell selected
A33: Window + E | B33: Opens Windows Explorer

Sheet Formulas
B1: Math Operators | C1: Symbol | F1: Comparative Operator
B2: Parenthesis | C2: ( ) | F2: Equal | G2: =
B3: Exponents | C3: ^ | F3: Greater Than | G3: >
B4: Multiply | C4: * | F4: Greater Than or Equal To | G4: >= | H4: Equal sign always comes second
B5: Divide | C5: / | F5: Less Than | G5: < | H5: Equal sign always comes second
B6: Add | C6: + | F6: or Equal To | G6: <=
B7: Subtract | C7: - | F7: Not | G7: <>
A9: Basic Rules for Formulas:
A10: 1 | B10: Equal sign starts all formulas
A11: 2 | B11: Numbers that can "vary" or "change" are typed into cells
A12: 3 | B12: Cell References are used in formula to point to the formula inputs
A13: 4 | B13: Math operators or comparative operators (above)
A15: 4 examples of Formulas:
A17: 1 | B17: Earnings for Month | E17: <<== Formula Input = Number typed into cell
B18: Expenses for Month | E18: <<== Formula Input = Number typed into cell
B19: Left For Savings for Other | E19: <<== Build formula with equal sign as 1st character in cell
E20: point to formula inputs with Cell References
E21: use math operators
E22: and hit Enter, Tab, or Ctrl + Enter to put formula in cell.
E23: Cell References can be entered into formula using
E24: the Mouse or the Arrow Keys.
A26: 2 | B26: Business Expenses | C26: Amounts
B27: Truck | C27: 542.45
B28: Delivery | C28: 40.7
B29: Utilities | C29: 300.44
B30: Lease | C30: 837.69
B31: Depreciation | C31: 363
B32: COGS | C32: 809.78
B33: Wage | C33: 6520
B34: Salary | C34: 724.43
C35: 43.61
B36: Web Site | C36: 735.73
E37: <<== Use SUM Function instead of plus symbol. It is more
E38: efficient because you can create formula more quickly
E39: and if you insert a row the "range of cells" updates.
E40: Be sure to always label formula inputs and calculations!!
A42: 3 | B42: Annual Truck Insurance | C42: 2501.25
B43: Amount Spent per Month | E43: <<== Example of a Formula Input that does not every "vary" or "change".
A45: 4 | B45: Your Monthly Sales | C45: 65000
B46: Bonus Hurdle | C46: 70000
B47: Did you get bonus? | E47: <<== Logical Formulas use Comparative Operators and show either TRUE
E48: or FALSE (No other answer is possible).
A50: ** Notice that formulas can have elements such as:
A51: Equal signs
A52: Cell References
A53: Typed Numbers if the Number will not change
A54: Math Operators
A55: Functions
A56: Comparative Operator

Sheet Formulas (an)
B1: Math Operators | C1: Symbol | F1: Comparative Operator
B2: Parenthesis | C2: ( ) | F2: Equal | G2: =
B3: Exponents | C3: ^ | F3: Greater Than | G3: >
B4: Multiply | C4: * | F4: Greater Than or Equal To | G4: >= | H4: Equal sign always comes second
B5: Divide | C5: / | F5: Less Than | G5: < | H5: Equal sign always comes second
B6: Add | C6: + | F6: or Equal To | G6: <=
B7: Subtract | C7: - | F7: Not | G7: <>
A9: Basic Rules for Formulas:
A10: 1 | B10: Equal sign starts all formulas
A11: 2 | B11: Numbers that can "vary" or "change" are typed into cells
A12: 3 | B12: Cell References are used in formula to point to the formula inputs
A13: 4 | B13: Math operators or comparative operators (above)
A15: 4 examples of Formulas:
A17: 1 | B17: Earnings for Month | C17: 2500 | E17: <<== Formula Input = Number typed into cell
B18: Expenses for Month | C18: 1800 | E18: <<== Formula Input = Number typed into cell
B19: Left For Savings for Other | C19: =C17-C18 -> 700 | E19: <<== Build formula with equal sign as 1st character in cell
E20: point to formula inputs with Cell References
E21: use math operators
E22: and hit Enter, Tab, or Ctrl + Enter to put formula in cell.
E23: Cell References can be entered into formula using
E24: the Mouse or the Arrow Keys.
A26: 2 | B26: Business Expenses | C26: Amounts
B27: Truck | C27: 542.45
B28: Delivery | C28: 40.7
B29: Utilities | C29: 300.44
B30: Lease | C30: 837.69
B31: Depreciation | C31: 363
B32: COGS | C32: 809.78
B33: Wage | C33: 6520
B34: Salary | C34: 724.43
B35: Misc | C35: 43.61
B36: Web Site | C36: 735.73
B37: Total | C37: =SUM(C27:C36) -> 10917.83 | E37: <<== Use SUM Function instead of plus symbol. It is more
E38: efficient because you can create formula more quickly
E39: and if you insert a row the "range of cells" updates.
E40: Be sure to always label formula inputs and calculations!!
A42: 3 | B42: Annual Truck Insurance | C42: 2501.25
B43: Amount Spent per Month | C43: =C42/12 -> 208.4375 | E43: <<== Example of a Formula Input that does not every "vary" or "change".
A45: 4 | B45: Your Monthly Sales | C45: 10000000
B46: Bonus Hurdle | C46: 70000
B47: Did you get bonus? | C47: =C45>=C46 -> TRUE | E47: <<== Logical Formulas use Comparative Operators and show either TRUE
E48: or FALSE (No other answer is possible).
A50: ** Notice that formulas can have elements such as:
A51: Equal signs
A52: Cell References
A53: Typed Numbers if the Number will not change
A54: Math Operators
A55: Functions
A56: Comparative Operator

Sheet Formatting
A1: 4 examples of Formulas, Stylistic Formatting and Number Formatting:
B3: Stylistic Formatting = Things like colors, fonts and borders
B4: Number Formatting = How you display the numbers (changing the display
B5: of the numbers does not change the underlying number)
A7: 1 | B7: Earnings for Month | E7: <<== "Currency" Number Format has a Floating $ sign
B8: Expenses for Month | E8: Keyboard for "Currency" ==>> Ctrl + Shift + 4
B9: Left For Savings for Other
E12: <<== "Accounting" Number Format has a Fixed $ sign, and
A13: 2 | B13: Business Expenses | C13: Amounts | E13: will always line up decimals. To show Accounting without a
B14: Truck | C14: 542.45 | E14: dollar sign use "Comma" Number Format.
B15: Delivery | C15: 40.7 | E15: <<== Use SUM Function instead of plus symbol. It is more
B16: Utilities | C16: 300.44 | E16: efficient because you can create formula more quickly
B17: Lease | C17: 837.69 | E17: and if you insert a row the "range of cells" updates.
B18: Depreciation | C18: 363 | E18: Be sure to always label formula inputs and calculations!!
B19: COGS | C19: 809.78
B20: Wage | C20: 6520
B21: Salary | C21: 724.43
C22: 43.61
B23: Web Site | C23: 735.73
E24: <<== Keyboard shortcut for SUM function is Alt + =
A29: 3 | B29: Annual Truck Insurance | C29: 2501.25
B30: Amount Spent per Month
A32: 4 | B32: Your Monthly Sales | C32: 65000
B33: Bonus Hurdle | C33: 70000
B34: Did you get bonus?

Sheet Formatting (an)
A1: 4 examples of Formulas, Stylistic Formatting and Number Formatting:
B3: Stylistic Formatting = Things like colors, fonts and borders
B4: Number Formatting = How you display the numbers (changing the display
B5: of the numbers does not change the underlying number)
A7: 1 | B7: Earnings for Month | C7: 2000 | E7: <<== "Currency" Number Format has a Floating $ sign
B8: Expenses for Month | C8: 1950 | E8: Keyboard for "Currency" ==>> Ctrl + Shift + 4
B9: Left For Savings for Other | C9: =C7-C8 -> 50
E12: <<== "Accounting" Number Format has a Fixed $ sign, and
A13: 2 | B13: Business Expenses | C13: Amounts | E13: will always line up decimals. To show Accounting without a
B14: Truck | C14: 542.45 | E14: dollar sign use "Comma" Number Format.
B15: Delivery | C15: 40.7 | E15: <<== Use SUM Function instead of plus symbol. It is more
B16: Utilities | C16: 300.44 | E16: efficient because you can create formula more quickly
B17: Lease | C17: 837.69 | E17: and if you insert a row the "range of cells" updates.
B18: Depreciation | C18: 363 | E18: Be sure to always label formula inputs and calculations!!
B19: COGS | C19: 809.78
B20: Wage | C20: 6520
B21: Salary | C21: 724.43 | E21: Format Cells Dialog Box = Ctrl + 1
B22: Misc | C22: 43.61
B23: Web Site | C23: 735.73
B24: Total | C24: =SUM(C14:C23) -> 10917.83 | E24: <<== Keyboard shortcut for SUM function is Alt + =
A29: 3 | B29: Annual Truck Insurance | C29: 3900
B30: Amount Spent per Month | C30: =C29/12 -> 325
A32: 4 | B32: Your Monthly Sales | C32: 65000
B33: Bonus Hurdle | C33: 70000
B34: Did you get bonus? | C34: =C32>=C33 -> FALSE

Sheet Ranges
A1: Business Expenses | B1: Amounts
A2: COGS | B2: 809.78
A3: Delivery | B3: 40.7
A4: Depreciation | B4: 363
A5: Lease | B5: 837.69
A6: Misc | B6: 43.61
A7: Salary | B7: 724.43
A8: Truck | B8: 542.45
A9: Utilities | B9: 300.44
A10: Wage | B10: 6520
A11: Web Site | B11: 735.73
A12: Total

Sheet Ranges (an)
A1: Business Expenses | B1: Amounts
A2: COGS | B2: 809.78
A3: Delivery | B3: 80
A4: Depreciation | B4: 363
A5: Insurance | B5: 500
A6: Lease | B6: 837.69
A7: Misc | B7: 43.61
A8: Salary | B8: 724.43
A9: Truck | B9: 542.45
A10: Utilities | B10: 300.44
A11: Wage | B11: 6520
A12: Web Site | B12: 735.73
A13: Total | B13: =SUM(B2:B12) -> 11457.13 | C13: =B2+B3+B4+B6+B7+B8+B9+B10+B11+B12 -> 10957.13

Sheet NumberFormatting
A1: Keyboard Shortcut for Format Cells Dialog box = Ctrl + 1
A3: Number Formatting is a façade that sits on top of the number and can show
A4: a number that is different than the underlying number.
A6: Example 1:
A7: Number 1 | B7: 9.99 | D7: <<== if you decrease the decimals the Number Formatting does not change
A8: Number 2 | B8: 10 | D8: the number in the cell it only changes the appearance of the number.
A9: Multiply | D9: <<== Formulas do not see the Number Formatting
A11: Applying the "General" Number Format will remove any Number Formatting
A12: and show the actual number that sits in the cell.
A14: Example 2:
A15: Number 1 | B15: 9.99
A16: Number 2 | B16: 10
A17: Multiply
A21: If you apply a Number Formatting like "Currency" to the cell before you type
A22: the numbers, you can save time with typing.
A24: Example 3:
A29: Total | C29: Total
A31: Example 4:
A32: Revenue | B32: 1500
A33: Expenses | B33: 1900
A34: Net Income | D34: <<== Format Cells Dialog box gives you all the power with Number Formatting
D35: Keyboard ==>> Ctrl + 1 = Format Cells Dialog Box
A38: Some Built-in Number Formatting like Date have a completely different
A39: number in the cell than what you see on the surface of the spreadsheet.
A40: Types in Dates are stored as "serial Numbers"; for example 1/1/1900 = 1,
A41: 1/2/1900 = 2, 9/22/2011 = 40808. This is so we can do Date Math.
A43: Example 5:
A44: 1900-01-01 | C44: <<== Apply "General" Number Format to prove this to yourself.
A45: 1900-01-02 | C45: Keyboard for "General" ==>> Ctrl + Shift + ~ or Ctrl + Shift + `
A46: 2011-09-22
A49: 1 | C49: <<== Apply "Date" Number Format to prove this to yourself.
A50: 2
A51: 40808
A53: Example 6: Later Date - Earlier Date | E53: Example 6: Bigger Number - Smaller Number
A54: Invoice Due Date | B54: 2011-09-22 | E54: Invoice Due Date | F54: 40808
A55: Today's Date | B55: 2011-10-12 | E55: Today's Date | F55: 40828
A56: Days Past Due | C56: Prove it ==>> | E56: Days Past Due
A58: "Percent" Number Formatting
A60: Example 7:
A62: Interest Rate | B62: 0.03 | D62: Interest Rate | E62: =B62 -> 0.03 | F62: <<== Apply "Percent" Number formatting
A63: Amount Invested | B63: 100 | D63: Amount Invested | E63: 100
A64: Interest Earned | D64: Interest Earned
A66: Example 8:
A68: Interest Rate | B68: 0.035 | C68: <<== Pre Applied Apply "Percent" Number formatting with 0 decimals showing
A69: Amount Invested | B69: 100
A70: Interest Earned | C70: <<== Formula looks at underlying Number
A72: Lesson Learned: Don't Get Tricked By Number Formatting!
A74: **We will learn a lot about "Percentage" Number formatting in the chapters on Percents.
A75: **We will see a lot of Date Math in the chapters on Invoicing and Investing
A76: **We will also see "Time" Number formatting in the chapters on Payroll

Sheet NumberFormatting (an)
A1: Keyboard Shortcut for Format Cells Dialog box = Ctrl + 1
A3: Number Formatting is a façade that sits on top of the number and can show
A4: a number that is different than the underlying number.
A6: Example 1:
A7: Number 1 | B7: 9.99 | D7: <<== if you decrease the decimals the Number Formatting does not change
A8: Number 2 | B8: 10 | D8: the number in the cell it only changes the appearance of the number.
A9: Multiply | B9: =B8*B7 -> 99.9 | D9: <<== Formulas do not see the Number Formatting
A11: Applying the "General" Number Format will remove any Number Formatting
A12: and show the actual number that sits in the cell.
A14: Example 2:
A15: Number 1 | B15: 9.99 | D15: 2000
A16: Number 2 | B16: 10
A17: Multiply | B17: =B16*B15 -> 99.9 | D17: Ctrl + Shift + ~
D18: Ctrl + Shift + `
A21: If you apply a Number Formatting like "Currency" to the cell before you type
A22: the numbers, you can save time with typing.
A24: Example 3:
B25: 20 | D25: 20 | E25: 20
B26: 10 | D26: 10 | E26: 10
B27: 35.25 | D27: 35.25 | E27: 35.25
B28: 19.5 | D28: 19.5 | E28: 19.5
A29: Total | B29: =SUM(B25:B28) -> 84.75 | C29: Total | D29: =SUM(D25:D28) -> 84.75
A31: Example 4:
A32: Revenue | B32: 1500
A33: Expenses | B33: 1900
A34: Net Income | B34: =B32-B33 -> -400 | D34: <<== Format Cells Dialog box gives you all the power with Number Formatting
D35: Keyboard ==>> Ctrl + 1 = Format Cells Dialog Box
A38: Some Built-in Number Formatting like Date have a completely different
A39: number in the cell than what you see on the surface of the spreadsheet.
A40: Types in Dates are stored as "Serial Numbers"; for example 1/1/1900 = 1,
A41: 1/2/1900 = 2, 9/22/2011 = 40808. This is so we can do Date Math.
A43: Example 5:
A44: 1 | C44: <<== Apply "General" Number Format to prove this to yourself.
A45: 2 | B45: 200 | C45: Keyboard for "General" ==>> Ctrl + Shift + ~ or Ctrl + Shift + `
A46: 40808
A49: 1900-01-01 | C49: <<== Apply "Date" Number Format to prove this to yourself.
A50: 1900-01-02
A51: 2011-09-22
A53: Example 6: Later Date - Earlier Date | E53: Example 6: Bigger Number - Smaller Number
A54: Invoice Due Date | B54: 2011-09-22 | E54: Invoice Due Date | F54: 40808 | I54: Loan Issue Date | J54: 2011-09-23
A55: Today's Date | B55: 2011-10-12 | E55: Today's Date | F55: 40828 | I55: Days | J55: 90
A56: Days Past Due | B56: =B55-B54 -> 20 | C56: Prove it ==>> | E56: Days Past Due | F56: =F55-F54 -> 20 | I56: Due Date | J56: =J54+J55 -> 2011-12-22
A58: "Percent" Number Formatting
A60: Example 7:
A62: Interest Rate | B62: 0.03 | D62: Interest Rate | E62: =B62 -> 0.03 | F62: <<== Apply "Percent" Number formatting
A63: Amount Invested | B63: 100 | D63: Amount Invested | E63: 100
A64: Interest Earned | B64: =B63*B62 -> 3 | D64: Interest Earned | E64: =E63*E62 -> 3
A66: Example 8:
A68: Interest Rate | B68: 0.035 | C68: <<== Pre Applied Apply "Percent" Number formatting with 0 decimals showing
A69: Amount Invested | B69: 100
A70: Interest Earned | B70: =B69*B68 -> 3.5 | C70: <<== Formula looks at underlying Number
A72: Lesson Learned: Don't Get Tricked By Number Formatting!
A74: **We will learn a lot about "Percentage" Number formatting in the chapters on Percents.
A75: **We will see a lot of Date Math in the chapters on Invoicing and Investing
A76: **We will also see "Time" Number formatting in the chapters on Payroll

Sheet Order
A1: What is the answer? | C1: =K1&" + "&L1&" * "&M1 -> 2 + 2 * 3 | K1: 2 | L1: 2 | M1: 3
C3: 12 or 8 ?????
A5: Prove it!!!! (Excel does not make math or logic errors)
B7: =$C$1 -> 2 + 2 * 3 | E7: <<== Use Formula Evaluator to "see" how
E8: Excel uses the Order of Operations:
E9: Formula Ribbon Tab, Formula Auditing
E10: Group, Evaluate Formula.
A12: Math order of operations | F12: Math order of operations
A13: 1 | B13: First, do everything in the parentheses | F13: 1 | G13: ( )
A14: 2 | B14: Second, do all exponents | F14: 2 | G14: ^
A15: 3 | B15: Third, do all multiplication and division, left to right | F15: 3 | G15: * / Left to Right
A16: 4 | B16: Fourth, do all adding and subtracting, left to right | F16: 4 | G16: + - Left to Right
B18: If you really want to do the adding first you must use Parenthesis like:
B20: ="("&K1&" + "&L1&") * "&M1 -> (2 + 2) * 3
B22: Remember:
B23: ="("&K1&" + "&L1&") * "&M1&" = "&(K1+L1)*M1 -> (2 + 2) * 3 = 12
B24: =K1&" + "&L1&" * "&M1&" = "&K1+L1*M1 -> 2 + 2 * 3 = 8
B26: Cost Of Goods Example:
B27: Beg Qty | C27: End Qty | D27: Value Each | E27: COGS
B28: 10 | C28: 3 | D28: 5 | F28: <<== Incorrect
B30: Beg Qty | C30: End Qty | D30: Value Each | E30: COGS
B31: 10 | C31: 3 | D31: 5 | F31: <<== Correct

Sheet Order (an)
A1: What is the answer? | C1: =K1&" + "&L1&" * "&M1 -> 2 + 2 * 3 | K1: 2 | L1: 2 | M1: 3
C3: 12 or 8 ?????
A5: Prove it!!!! (Excel does not make math or logic errors)
B7: =$C$1 -> 2 + 2 * 3 | C7: =2+2*3 -> 8 | E7: <<== Use Formula Evaluator to "see" how
E8: Excel uses the Order of Operations:
E9: Formula Ribbon Tab, Formula Auditing
E10: Group, Evaluate Formula.
A12: Math order of operations | F12: Math order of operations
A13: 1 | B13: First, do everything in the parentheses | F13: 1 | G13: ( )
A14: 2 | B14: Second, do all exponents | F14: 2 | G14: ^
A15: 3 | B15: Third, do all multiplication and division, left to right | F15: 3 | G15: * / Left to Right
A16: 4 | B16: Fourth, do all adding and subtracting, left to right | F16: 4 | G16: + - Left to Right
B18: If you really want to do the adding first you must use Parenthesis like:
B20: ="("&K1&" + "&L1&") * "&M1 -> (2 + 2) * 3 | C20: =(2+2)*3 -> 12
B22: Remember:
B23: ="("&K1&" + "&L1&") * "&M1&" = "&(K1+L1)*M1 -> (2 + 2) * 3 = 12
B24: =K1&" + "&L1&" * "&M1&" = "&K1+L1*M1 -> 2 + 2 * 3 = 8
B26: Cost Of Goods Example:
B27: Beg Qty | C27: End Qty | D27: Value Each | E27: COGS
B28: 10 | C28: 3 | D28: 5 | E28: =B28-C28*D28 -> -5 | F28: <<== Incorrect
B30: Beg Qty | C30: End Qty | D30: Value Each | E30: COGS
B31: 10 | C31: 3 | D31: 5 | E31: =(B31-C31)*D31 -> 35 | F31: <<== Correct

Sheet Functions
B1: Expenses | E1: Sales In 1 Day
B2: 79 | E2: 727
B3: 35 | E3: 2547
B4: 137 | E4: 216
B5: 40 | E5: 1031
B6: 18 | E6: 276
B7: 109 | E7: 844
B8: 35 | E8: 3598
B9: 119 | E9: 3867
B10: 67 | E10: 2672
A11: Total | D11: Average
A13: Car Loan | B13: 16000
A14: Monthly Rate | B14: 0.005
A15: Months Until Due | B15: 60
A16: Monthly Payment

Sheet Functions (an)
B1: Expenses | E1: Sales In 1 Day
B2: 79 | E2: 727
B3: 35 | E3: 2547
B4: 137 | E4: 216
B5: 40 | E5: 1031
B6: 18 | E6: 276
B7: 109 | E7: 844
B8: 35 | E8: 3598
B9: 119 | E9: 3867
B10: 67 | E10: 2672
A11: Total | B11: =SUM(B2:B10) -> 639 | D11: Average | E11: =AVERAGE(E2:E10) -> 1753.111111
A13: Car Loan | B13: 16000
A14: Monthly Rate | B14: 0.005
A15: Months Until Due | B15: 60
A16: Monthly Payment | B16: =PMT(B14,B15,B13) -> -309.3248245

Sheet Cell References
B1: Relative Cell References
B2: When formulas with Relative Cell References are copied, the Cell References "Move" with the copied formula.
B3: A Relative Cell Reference always looks relative to the position of the formula being copied.
A5: 1 | B5: Name | C5: Quiz 1 | D5: Quiz 2 | E5: Quiz 3
B6: Joe | C6: 18 | D6: 15 | E6: 3
B7: Chin | C7: 16 | D7: 18 | E7: 2
B8: Kiko | C8: 2 | D8: 4 | E8: 15
B9: Sue | C9: 17 | D9: 16 | E9: 3
B10: Isaac | C10: 24 | D10: 7 | E10: 9
B11: Sioux | C11: 16 | D11: 16 | E11: 3
B12: Phil | C12: 14 | D12: 5 | E12: 16
B13: Luong | C13: 20 | D13: 23 | E13: 1
B14: Jo | C14: 14 | D14: 7 | E14: 18
B15: Mo | C15: 7 | D15: 21 | E15: 6
B16: Phuong | C16: 1 | D16: 5 | E16: 3
B17: June | C17: 11 | D17: 5 | E17: 19
B18: Average | G18: Keyboard: F2 Key puts cell in Edit Mode
A20: 2 | C20: Jan | D20: Feb | E20: Mar | F20: Apr | G20: May
C21: 3908 | D21: 1012 | E21: 3809 | F21: 4761 | G21: 2266
C22: 2339 | D22: 2923 | E22: 2085 | F22: 2609 | G22: 2848
C23: 1165 | D23: 4731 | E23: 4712 | F23: 3055 | G23: 3158
C24: 3105 | D24: 3135 | E24: 1021 | F24: 1603 | G24: 4038
C25: 3108 | D25: 4804 | E25: 2979 | F25: 2899 | G25: 2634
C26: 4237 | D26: 1079 | E26: 2746 | F26: 4967 | G26: 4749
C27: 1819 | D27: 2438 | E27: 3081 | F27: 4750 | G27: 4589
B28: Total
B30: Absolute Cell References
B31: When formulas with Absolute Cell References are copied, the Cell References are "locked" throughout the copy action.
B32: The Absolute Cell Reference does not move throughout copy action.
A34: 3 | B34: Names | C34: Gross Pay | D34: Deduction | F34: Assumptions
B35: Joe | C35: 5000 | F35: Tax Rate | G35: 0.125
B36: Chin | C36: 4500
B37: Kiko | C37: 6300 | F37: <<== In the Payroll Chapters this Excel knowledge will save us a lot of time
B38: Sue | C38: 5800
B39: Isaac | C39: 4300 | F39: If Your Cursor is touching the Cell Reference, Use F4 key to Lock Cell Reference
A41: 4 | B41: Student Grades
B42: Names | C42: Points For Class | D42: % Grade
B43: Max Possible | C43: 500 | D43: =C43/$C$43 -> 1
B44: Joe | C44: 478 | F44: We are comparing a "Part" to the "Whole"
B45: Chin | C45: 366 | F45: <<== In the Percent Chapters this Excel knowledge will save us a lot of time
B46: Kiko | C46: 272
B47: Sue | C47: 478 | F47: **Note: There are other types of Cell References, but we will not use them in this class.
B48: Isaac | C48: 468
B49: Sioux | C49: 255
B50: Phil | C50: 244
B51: Luong | C51: 449
B52: Jo | C52: 144
B53: Mo | C53: 101
B54: Phuong | C54: 221
B55: June | C55: 373

Sheet Cell References (an)
B1: Relative Cell References
B2: When formulas with Relative Cell References are copied, the Cell References "Move" with the copied formula.
B3: A Relative Cell Reference always looks relative to the position of the formula being copied.
A5: 1 | B5: Name | C5: Quiz 1 | D5: Quiz 2 | E5: Quiz 3
B6: Joe | C6: 18 | D6: 15 | E6: 3
B7: Chin | C7: 16 | D7: 18 | E7: 2
B8: Kiko | C8: 2 | D8: 4 | E8: 15
B9: Sue | C9: 17 | D9: 16 | E9: 3
B10: Isaac | C10: 24 | D10: 7 | E10: 9
B11: Sioux | C11: 16 | D11: 16 | E11: 3
B12: Phil | C12: 14 | D12: 5 | E12: 16
B13: Luong | C13: 20 | D13: 23 | E13: 1
B14: Jo | C14: 14 | D14: 7 | E14: 18
B15: Mo | C15: 7 | D15: 21 | E15: 6
B16: Phuong | C16: 1 | D16: 5 | E16: 3
B17: June | C17: 11 | D17: 5 | E17: 19
B18: Average | C18: =AVERAGE(C6:C17) -> 13.33333333 | D18: =AVERAGE(D6:D17) -> 11.83333333 | E18: =AVERAGE(E6:E17) -> 8.166666667 | G18: Keyboard: F2 Key puts cell in Edit Mode
A20: 2 | C20: Jan | D20: Feb | E20: Mar | F20: Apr | G20: May | H20: Total | J20: Mon
B21: Pro 1 | C21: 3908 | D21: 1012 | E21: 3809 | F21: 4761 | G21: 2266 | H21: =SUM(C21:G21) -> 15756 | J21: Tue
B22: Pro 2 | C22: 2339 | D22: 2923 | E22: 2085 | F22: 2609 | G22: 2848 | H22: =SUM(C22:G22) -> 12804 | J22: Wed
B23: Pro 3 | C23: 1165 | D23: 4731 | E23: 4712 | F23: 3055 | G23: 3158 | H23: 16821 | J23: Thu
B24: Pro 4 | C24: 3105 | D24: 3135 | E24: 1021 | F24: 1603 | G24: 4038 | H24: 12902 | J24: Fri
B25: Pro 5 | C25: 3108 | D25: 4804 | E25: 2979 | F25: 2899 | G25: 2634 | H25: 16424
B26: Pro 6 | C26: 4237 | D26: 1079 | E26: 2746 | F26: 4967 | G26: 4749 | H26: 17778 | J26: Monday
B27: Pro 7 | C27: 1819 | D27: 2438 | E27: 3081 | F27: 4750 | G27: 4589 | H27: 16677 | J27: Tuesday
B28: Total | C28: =SUM(C21:C27) -> 19681 | D28: =SUM(D21:D27) -> 20122 | E28: 20433 | F28: 24644 | G28: 24282 | H28: 109162 | J28: Wednesday
B30: Absolute Cell References
B31: When formulas with Absolute Cell References are copied, the Cell References are "locked" throughout the copy action.
B32: The Absolute Cell Reference does not move throughout copy action.
A34: 3 | B34: Names | C34: Gross Pay | D34: Deduction | F34: Assumptions
B35: Joe | C35: 5000 | D35: =C35*$G$35 -> 625 | F35: Tax Rate | G35: 0.125
B36: Chin | C36: 4500 | D36: =C36*$G$35 -> 562.5
B37: Kiko | C37: 6300 | D37: 787.5 | F37: <<== In the Payroll Chapters this Excel knowledge will save us a lot of time
B38: Sue | C38: 5800 | D38: 725
B39: Isaac | C39: 4300 | D39: =C39*$G$35 -> 537.5 | F39: If Your Cursor is touching the Cell Reference, Use F4 key to Lock Cell Reference
A41: 4 | B41: Student Grades
B42: Names | C42: Points For Class | D42: % Grade
B43: Max Possible | C43: 500 | D43: =C43/$C$43 -> 1
B44: Joe | C44: 478 | D44: =C44/$C$43 -> 0.956 | F44: We are comparing a "Part" to the "Whole"
B45: Chin | C45: 366 | D45: =C45/$C$43 -> 0.732 | F45: <<== In the Percent Chapters this Excel knowledge will save us a lot of time
B46: Kiko | C46: 272 | D46: 0.544
B47: Sue | C47: 478 | D47: 0.956 | F47: **Note: There are other types of Cell References, but we will not use them in this class.
B48: Isaac | C48: 468 | D48: 0.936
B49: Sioux | C49: 255 | D49: 0.51
B50: Phil | C50: 244 | D50: 0.488
B51: Luong | C51: 449 | D51: 0.898
B52: Jo | C52: 144 | D52: 0.288
B53: Mo | C53: 101 | D53: 0.202
B54: Phuong | C54: 221 | D54: 0.442
B55: June | C55: 373 | D55: =C55/$C$43 -> 0.746

Sheet All
A1: You are the payroll accountant at Rad Corp. The employee names are Sioux, Tom, Chin and Sheliadawn. The Weekly Pay for Sioux is $750.00, for Tom it is $800.00, for Chin it is $795.00, and for Sheliadawn it is $825.00. The Tax Deduction rate is 7.95%. Using your new knowledge about Excel Formulas, Formatting and Cell References, use the cells below to make the necessary calculations to determine the tax for each employee. | P1: ="You are the payroll accountant at "&AP3&". The employee names are "&AQ3&", "&AQ4&", "&AQ5&" and "&AQ6&". The "&AR2&" for "&AQ3&" is "&DOLLAR(AR3)&", for "&AQ4&" it is "&DOLLAR(AR4)&", for "&AQ5&" it is "&DOLLAR(AR5)&", and for "&AQ6&" it is "&DOLLAR(AR6)&". The Tax Deduction rate is "&TEXT(AS3,"0.00%")&". Using your new knowledge about Excel Formulas, Formatting and Cell References, use the cells below to make the necessary calculations to determine the tax for each employee." -> You are the payroll accountant at Rad Corp. The employee names are Sioux, Tom, Chin and Sheliadawn. The Weekly Pay for Sioux is $750.00, for Tom it is $800.00, for Chin it is $795.00, and for Sheliadawn it is $825.00. The Tax Deduction rate is 7.95%. Using your new knowledge about Excel Formulas, Formatting and Cell References, use the cells below to make the necessary calculations to determine the tax for each employee.
AO2: Data Hidden Here that is linked to Cell A1 ==>> | AP2: Company Name | AQ2: Name | AR2: Weekly Pay | AS2: Deduction Rate
AP3: Rad Corp | AQ3: Sioux | AR3: 750 | AS3: 0.0795
AQ4: Tom | AR4: 800
AQ5: Chin | AR5: 795
AQ6: Sheliadawn | AR6: 825

Sheet All (an)
A1: You are the payroll accountant at Rad Corp. The employee names are Sioux, Tom, Chin and Sheliadawn. The Weekly Pay for Sioux is $750.00, for Tom it is $800.00, for Chin it is $795.00, and for Sheliadawn it is $825.00. The Tax Deduction rate is 7.95%. Using your new knowledge about Excel Formulas, Formatting and Cell References, use the cells below to make the necessary calculations to determine the tax for each employee. | P1: ="You are the payroll accountant at "&AP3&". The employee names are "&AQ3&", "&AQ4&", "&AQ5&" and "&AQ6&". The "&AR2&" for "&AQ3&" is "&DOLLAR(AR3)&", for "&AQ4&" it is "&DOLLAR(AR4)&", for "&AQ5&" it is "&DOLLAR(AR5)&", and for "&AQ6&" it is "&DOLLAR(AR6)&". The Tax Deduction rate is "&TEXT(AS3,"0.00%")&". Using your new knowledge about Excel Formulas, Formatting and Cell References, use the cells below to make the necessary calculations to determine the tax for each employee." -> You are the payroll accountant at Rad Corp. The employee names are Sioux, Tom, Chin and Sheliadawn. The Weekly Pay for Sioux is $750.00, for Tom it is $800.00, for Chin it is $795.00, and for Sheliadawn it is $825.00. The Tax Deduction rate is 7.95%. Using your new knowledge about Excel Formulas, Formatting and Cell References, use the cells below to make the necessary calculations to determine the tax for each employee.
AO2: Data Hidden Here that is linked to Cell A1 ==>> | AP2: Company Name | AQ2: Name | AR2: Weekly Pay | AS2: Deduction Rate
A3: Names | B3: Weekly Pay | C3: Tax Deduction | E3: Tax Rate | AP3: Rad Corp | AQ3: Sioux | AR3: 750 | AS3: 0.0795
A4: Sioux | B4: 750 | C4: =B4*$E$4 -> 59.625 | E4: 0.0795 | AQ4: Tom | AR4: 800
A5: Tom | B5: 800 | C5: =B5*$E$4 -> 63.6 | AQ5: Chin | AR5: 795
A6: Chin | B6: 795 | C6: 63.2025 | AQ6: Sheliadawn | AR6: 825
A7: Sheliadawn | B7: 825 | C7: 65.5875
A8: Total | B8: =SUM(B4:B7) -> 3170 | C8: =SUM(C4:C7) -> 252.015

Sheet Homework==>>

Sheet HW(1)
A1: You are the payroll accountant at Fun Industries. The employee names are Pham, Loung, Tina and Mo. The Weekly Pay for Pham is $910.00, for Loung it is $890.00, for Tina it is $725.00, and for Mo it is $695.00. The Tax Deduction rate is 12.50%. Using your new knowledge about Excel Formulas, Formatting and Cell References, use the cells below to make the necessary calculations to determine the tax for each employee. | P1: ="You are the payroll accountant at "&AP3&". The employee names are "&AQ3&", "&AQ4&", "&AQ5&" and "&AQ6&". The "&AR2&" for "&AQ3&" is "&DOLLAR(AR3)&", for "&AQ4&" it is "&DOLLAR(AR4)&", for "&AQ5&" it is "&DOLLAR(AR5)&", and for "&AQ6&" it is "&DOLLAR(AR6)&". The Tax Deduction rate is "&TEXT(AS3,"0.00%")&". Using your new knowledge about Excel Formulas, Formatting and Cell References, use the cells below to make the necessary calculations to determine the tax for each employee." -> You are the payroll accountant at Fun Industries. The employee names are Pham, Loung, Tina and Mo. The Weekly Pay for Pham is $910.00, for Loung it is $890.00, for Tina it is $725.00, and for Mo it is $695.00. The Tax Deduction rate is 12.50%. Using your new knowledge about Excel Formulas, Formatting and Cell References, use the cells below to make the necessary calculations to determine the tax for each employee.
AO2: Data Hidden Here that is linked to Cell A1 ==>> | AP2: Company Name | AQ2: Name | AR2: Weekly Pay | AS2: Deduction Rate
AP3: Fun Industries | AQ3: Pham | AR3: 910 | AS3: 0.125
AQ4: Loung | AR4: 890
AQ5: Tina | AR5: 725
AQ6: Mo | AR6: 695

Sheet HW(1an)
A1: You are the payroll accountant at Fun Industries. The employee names are Pham, Loung, Tina and Mo. The Weekly Pay for Pham is $910.00, for Loung it is $890.00, for Tina it is $725.00, and for Mo it is $695.00. The Tax Deduction rate is 12.50%. Using your new knowledge about Excel Formulas, Formatting and Cell References, use the cells below to make the necessary calculations to determine the tax for each employee. | P1: ="You are the payroll accountant at "&AP3&". The employee names are "&AQ3&", "&AQ4&", "&AQ5&" and "&AQ6&". The "&AR2&" for "&AQ3&" is "&DOLLAR(AR3)&", for "&AQ4&" it is "&DOLLAR(AR4)&", for "&AQ5&" it is "&DOLLAR(AR5)&", and for "&AQ6&" it is "&DOLLAR(AR6)&". The Tax Deduction rate is "&TEXT(AS3,"0.00%")&". Using your new knowledge about Excel Formulas, Formatting and Cell References, use the cells below to make the necessary calculations to determine the tax for each employee." -> You are the payroll accountant at Fun Industries. The employee names are Pham, Loung, Tina and Mo. The Weekly Pay for Pham is $910.00, for Loung it is $890.00, for Tina it is $725.00, and for Mo it is $695.00. The Tax Deduction rate is 12.50%. Using your new knowledge about Excel Formulas, Formatting and Cell References, use the cells below to make the necessary calculations to determine the tax for each employee.
AO2: Data Hidden Here that is linked to Cell A1 ==>> | AP2: Company Name | AQ2: Name | AR2: Weekly Pay | AS2: Deduction Rate
AP3: Fun Industries | AQ3: Pham | AR3: 910 | AS3: 0.125
A4: Company Name | B4: Name | C4: Weekly Pay | D4: Tax Deduction | F4: Deduction Rate | AQ4: Loung | AR4: 890
A5: Fun Industries | B5: Pham | C5: 910 | D5: =C5*$F$5 -> 113.75 | F5: 0.125 | AQ5: Tina | AR5: 725
B6: Loung | C6: 890 | D6: 111.25 | AQ6: Mo | AR6: 695
B7: Tina | C7: 725 | D7: 90.625
B8: Mo | C8: 695 | D8: 86.875

Sheet HW(2)
A1: If Company A had Revenue of $50,250 and Expenses of $43,795, what is the Net Income? Net Income is Revenue - Expenses. Using your new knowledge about Excel Formulas, Formatting and Cell References, use the cells below to make the necessary calculations to determine the Net Income.

Sheet HW(2an)
A1: If Company A had Revenue of $50,250 and Expenses of $43,795, what is the Net Income? Net Income is Revenue - Expenses. Using your new knowledge about Excel Formulas, Formatting and Cell References, use the cells below to make the necessary calculations to determine the Net Income.
A4: Revenue | B4: 50250
A5: Expenses | B5: 43795
A6: Net Income | B6: =B4-B5 -> 6455

Sheet HW(3)
A1: Format the column of numbers below and then in the cells below calculate the total, the average and the maximum value (remember if you don't know what function to use for finding the maximum, search the Insert Functions dialog box).
B3: Sales
B4: 308.83
B5: 139.57
B6: 343.32
B7: 254.63
B8: 171.23
B9: 213.12
B10: 437.15
B11: 253.41
B12: 485.18
B13: 289.14
B14: 411.18
B15: 222.68
B16: 117.94
B17: 234.59
B18: 436.9
B19: 143.02

Sheet HW(3an)
A1: Format the column of numbers below and then in the cells below calculate the total, the average and the maximum value (remember if you don't know what function to use for finding the maximum, search the Insert Functions dialog box).
B3: Sales
B4: 308.83
B5: 139.57
B6: 343.32
B7: 254.63
B8: 171.23
B9: 213.12
B10: 437.15
B11: 253.41
B12: 485.18
B13: 289.14
B14: 411.18
B15: 222.68
B16: 117.94
B17: 234.59
B18: 436.9
B19: 143.02
A20: Total | B20: =SUM(B4:B19) -> 4461.89
A21: Average | B21: =AVERAGE(B4:B19) -> 278.868125
A22: Max | B22: =MAX(B4:B19) -> 485.18

Sheet HW(4)
A1: If an invoice due date is 9/23/2011 and todays date is 11/15/2011, how many days past due is the invoice? Using your new knowledge about Excel Formulas, Formatting and Cell References, use the cells below to make the necessary calculations to determine the Days Past Due.

Sheet HW(4an)
A1: If an invoice due date is 9/23/2011 and todays date is 11/15/2011, how many days past due is the invoice? Using your new knowledge about Excel Formulas, Formatting and Cell References, use the cells below to make the necessary calculations to determine the Days Past Due.
A3: Invoice Due Date | B3: 2011-09-23
A4: Today's Date | B4: 2011-11-15
A5: Days Past Due | B5: =B4-B3 -> 53

Sheet HW(5)
A1: Format the table below with Number Format and add all the sales for each week and each employee.
A3: Names | B3: Sales Week 1 | C3: Sales Week 2 | D3: Sales Week 3 | E3: Sales Week 4 | F3: Sales Week 5 | G3: Total
A4: Lenore Kaser | B4: 565.18 | C4: 755.62 | D4: 528.33 | E4: 936.45 | F4: 864.32
A5: Emilia Nulph | B5: 936.55 | C5: 894.35 | D5: 806.61 | E5: 432.86 | F5: 477.93
A6: Erik Northam | B6: 855.42 | C6: 764.41 | D6: 455.42 | E6: 398.65 | F6: 562.03
A7: Javier Nitti | B7: 793.25 | C7: 832.89 | D7: 754.65 | E7: 722.73 | F7: 483.64
A8: Margery Vanderheyden | B8: 498.63 | C8: 612.57 | D8: 839.66 | E8: 720.34 | F8: 380.08
A9: Cody Santee | B9: 552.62 | C9: 783.62 | D9: 355.65 | E9: 616 | F9: 625.87
A10: Darren Dysart | B10: 420.69 | C10: 958.03 | D10: 658.03 | E10: 631.68 | F10: 763.33
A11: Rae Maultsby | B11: 918.32 | C11: 392.17 | D11: 631.34 | E11: 601.64 | F11: 649.48
A12: Mathew Pincus | B12: 560.38 | C12: 402.49 | D12: 992.47 | E12: 482.95 | F12: 539.41
A13: Dona Hadsell | B13: 389.31 | C13: 640 | D13: 615.54 | E13: 991 | F13: 694.11
A14: Total

Sheet HW(5an)
A1: Format the table below with Number Format and add all the sales for each week and each employee.
A3: Names | B3: Sales Week 1 | C3: Sales Week 2 | D3: Sales Week 3 | E3: Sales Week 4 | F3: Sales Week 5 | G3: Total
A4: Lenore Kaser | B4: 565.18 | C4: 755.62 | D4: 528.33 | E4: 936.45 | F4: 864.32 | G4: =SUM(B4:F4) -> 3649.9
A5: Emilia Nulph | B5: 936.55 | C5: 894.35 | D5: 806.61 | E5: 432.86 | F5: 477.93 | G5: 3548.3
A6: Erik Northam | B6: 855.42 | C6: 764.41 | D6: 455.42 | E6: 398.65 | F6: 562.03 | G6: 3035.93
A7: Javier Nitti | B7: 793.25 | C7: 832.89 | D7: 754.65 | E7: 722.73 | F7: 483.64 | G7: 3587.16
A8: Margery Vanderheyden | B8: 498.63 | C8: 612.57 | D8: 839.66 | E8: 720.34 | F8: 380.08 | G8: 3051.28
A9: Cody Santee | B9: 552.62 | C9: 783.62 | D9: 355.65 | E9: 616 | F9: 625.87 | G9: 2933.76
A10: Darren Dysart | B10: 420.69 | C10: 958.03 | D10: 658.03 | E10: 631.68 | F10: 763.33 | G10: 3431.76
A11: Rae Maultsby | B11: 918.32 | C11: 392.17 | D11: 631.34 | E11: 601.64 | F11: 649.48 | G11: 3192.95
A12: Mathew Pincus | B12: 560.38 | C12: 402.49 | D12: 992.47 | E12: 482.95 | F12: 539.41 | G12: 2977.7
A13: Dona Hadsell | B13: 389.31 | C13: 640 | D13: 615.54 | E13: 991 | F13: 694.11 | G13: 3329.96
A14: Total | B14: =SUM(B4:B13) -> 6490.35 | C14: =SUM(C4:C13) -> 7036.15 | D14: =SUM(D4:D13) -> 6637.7 | E14: =SUM(E4:E13) -> 6534.3 | F14: =SUM(F4:F13) -> 6040.2 | G14: 32738.7

Sheet HW(6)
A1: ="In the Green Cell below (cell "&ADDRESS(ROW(A9),COLUMN(A9),4)&"), write statement about what you think the problem is with the calculation below." -> In the Green Cell below (cell A9), write statement about what you think the problem is with the calculation below.
A3: Product | B3: Boomerang
A4: Number of Product Sold | B4: 15
A5: Price Each | B5: 17.55
A6: Total Revenue | B6: =B5*B4 -> 263.25
A8: In the Green Cell below, write statement about what you think the problem is with the calculation above.

Sheet HW(6an)
A1: ="In the Green Cell below (cell "&ADDRESS(ROW(A9),COLUMN(A9),4)&"), write statement about what you think the problem is with the calculation below." -> In the Green Cell below (cell A9), write statement about what you think the problem is with the calculation below.
A3: Product | B3: Boomerang | D3: Product | E3: Boomerang
A4: Number of Product Sold | B4: 15 | D4: Number of Product Sold | E4: 15
A5: Price Each | B5: 17.55 | D5: Price Each | E5: 17.55
A6: Total Revenue | B6: =B5*B4 -> 263.25 | D6: Total Revenue | E6: =E5*E4 -> 263.25
A8: In the Green Cell below, write statement about what you think the problem is with the calculation above.
A9: ="I was tricked by formatting!!!! But then I examined the cells and found that cell "&ADDRESS(ROW(B5),COLUMN(B5),4)&" had NO DECIMALS SHOWING!!. I copied the table and pasted it to the side and then increased the decimals to show the correct number." -> I was tricked by formatting!!!! But then I examined the cells and found that cell B5 had NO DECIMALS SHOWING!!. I copied the table and pasted it to the side and then increased the decimals to show the correct number.

Sheet HW(7)
A1: In the cells below, write the order of operations for math (Remember; it is just 4 things!! :)

Sheet HW(7an)
A1: In the cells below, write the order of operations for math (Remember; it is just 4 things!! :)
A4: 1 | B4: Parenthesis | C4: ( )
A5: 2 | B5: Exponents | C5: ^
A6: 3 | B6: Multiplicationa dn Division, Left to Right | C6: * /
A7: 4 | B7: Adding and Substracting, Left to Right | C7: + - | D7: <<== if you want to type a symbol into the cell, it is
D8: best to type a space first and then the symbol.
